[Event "*** SCC Grand Prix: Titled Tuesday Blitz"]
[Site "Chess.com"]
[Date "2020.07.21"]
[Round "3"]
[White "FontVella8"]
[Black "XiaoKangZhong"]
[Result "1-0"]
[WhiteElo "2580"]
[BlackElo "2352"]
[TimeControl "180+1"]
[EndTime "10:28:14 PDT"]
[Termination "FontVella8 won on time"]

1. b3 {[%clk 0:02:59.3]} 1... Nf6 {[%clk 0:02:59.8]} 2. Bb2 {[%clk 0:02:59.5]}
2... g6 {[%clk 0:03:00.7]} 3. Nf3 {[%clk 0:02:59.7]} 3... Bg7 {[%clk 0:03:00.8]}
4. g3 {[%clk 0:03:00.3]} 4... O-O {[%clk 0:03:01.5]} 5. Bg2 {[%clk 0:03:00.9]}
5... d5 {[%clk 0:03:02.2]} 6. O-O {[%clk 0:02:59.3]} 6... c5 {[%clk 0:03:02.3]}
7. d3 {[%clk 0:02:59.1]} 7... Nc6 {[%clk 0:03:02.1]} 8. Nbd2 {[%clk 0:02:59]}
8... d4 {[%clk 0:03:00.8]} 9. a4 {[%clk 0:02:56.6]} 9... Nd5 {[%clk 0:02:59.2]}
10. Nc4 {[%clk 0:02:55.1]} 10... e5 {[%clk 0:02:52]} 11. e4 {[%clk 0:02:53.3]}
11... dxe3 {[%clk 0:02:42.2]} 12. fxe3 {[%clk 0:02:49.3]} 12... Qe7 {[%clk
0:02:31.1]} 13. e4 {[%clk 0:02:25.3]} 13... Nc7 {[%clk 0:02:27.1]} 14. Qd2
{[%clk 0:02:22.8]} 14... f6 {[%clk 0:02:26.9]} 15. Qf2 {[%clk 0:02:13.7]} 15...
b6 {[%clk 0:02:06]} 16. Ba3 {[%clk 0:02:11.1]} 16... Be6 {[%clk 0:02:00.8]} 17.
a5 {[%clk 0:02:05.2]} 17... Bxc4 {[%clk 0:02:00.6]} 18. bxc4 {[%clk 0:02:05.2]}
18... Nxa5 {[%clk 0:01:59.3]} 19. Bxc5 {[%clk 0:02:01.8]} 19... bxc5 {[%clk
0:01:49.7]} 20. Rxa5 {[%clk 0:02:01.8]} 20... Ne6 {[%clk 0:01:50.3]} 21. Rfa1
{[%clk 0:01:52.9]} 21... Rfb8 {[%clk 0:01:47.2]} 22. Bh3 {[%clk 0:01:49.1]}
22... Nd4 {[%clk 0:01:45.7]} 23. Ne1 {[%clk 0:01:33.7]} 23... Rb2 {[%clk
0:01:39]} 24. Ra6 {[%clk 0:01:31.8]} 24... Qb7 {[%clk 0:01:18.2]} 25. Bg4 {[%clk
0:00:42.5]} 25... Rb1 {[%clk 0:01:15.8]} 26. c3 {[%clk 0:00:42.5]} 26... Nc2
{[%clk 0:00:28.4]} 27. Qxc2 {[%clk 0:00:36.2]} 27... Rxe1+ {[%clk 0:00:26.1]}
28. Rxe1 {[%clk 0:00:34.4]} 28... Qxa6 {[%clk 0:00:26.1]} 29. h4 {[%clk
0:00:30.8]} 29... Rb8 {[%clk 0:00:25.4]} 30. h5 {[%clk 0:00:28.7]} 30... Qb6
{[%clk 0:00:25.1]} 31. Qf2 {[%clk 0:00:14.8]} 31... Bf8 {[%clk 0:00:20.5]} 32.
hxg6 {[%clk 0:00:13.9]} 32... hxg6 {[%clk 0:00:20.7]} 33. Rf1 {[%clk 0:00:13.9]}
33... Be7 {[%clk 0:00:20.4]} 34. Ra1 {[%clk 0:00:09]} 34... Kg7 {[%clk
0:00:19.2]} 35. Qa2 {[%clk 0:00:08.3]} 35... Rb7 {[%clk 0:00:17]} 36. Qa4 {[%clk
0:00:08.2]} 36... Kf8 {[%clk 0:00:12.1]} 37. Bc8 {[%clk 0:00:05.5]} 37... Rc7
{[%clk 0:00:09.8]} 38. Bd7 {[%clk 0:00:05.5]} 38... Qd6 {[%clk 0:00:09.2]} 39.
Bb5 {[%clk 0:00:04.8]} 1-0

[Event "*** SCC Grand Prix: Titled Tuesday Blitz"]
[Site "Chess.com"]
[Date "2020.07.21"]
[Round "3"]
[White "FMOlexandrProhorov"]
[Black "petincash"]
[Result "0-1"]
[WhiteElo "2131"]
[BlackElo "2354"]
[TimeControl "180+1"]
[EndTime "10:28:14 PDT"]
[Termination "petincash won by resignation"]

1. e4 {[%clk 0:03:00.9]} 1... c5 {[%clk 0:02:58.8]} 2. c3 {[%clk 0:03:00.6]}
2... d5 {[%clk 0:02:57.5]} 3. exd5 {[%clk 0:02:41.6]} 3... Qxd5 {[%clk
0:02:58.4]} 4. d4 {[%clk 0:02:41.6]} 4... Nc6 {[%clk 0:02:56.7]} 5. Nf3 {[%clk
0:02:41.7]} 5... cxd4 {[%clk 0:02:54]} 6. cxd4 {[%clk 0:02:41.6]} 6... e5 {[%clk
0:02:54.3]} 7. Nc3 {[%clk 0:02:41.5]} 7... Bb4 {[%clk 0:02:53.5]} 8. Bd2 {[%clk
0:02:41.9]} 8... Bxc3 {[%clk 0:02:53.6]} 9. Bxc3 {[%clk 0:02:41.6]} 9... e4
{[%clk 0:02:53.9]} 10. Ne5 {[%clk 0:02:42.1]} 10... Nxe5 {[%clk 0:02:54.4]} 11.
dxe5 {[%clk 0:02:43]} 11... Ne7 {[%clk 0:02:54.6]} 12. Be2 {[%clk 0:02:38.3]}
12... O-O {[%clk 0:02:45.6]} 13. O-O {[%clk 0:02:38.5]} 13... Be6 {[%clk
0:02:44]} 14. Bb4 {[%clk 0:02:20.1]} 14... Rfe8 {[%clk 0:02:36]} 15. Qxd5 {[%clk
0:02:02.7]} 15... Nxd5 {[%clk 0:02:32.3]} 16. Bd6 {[%clk 0:02:03.6]} 16... a6
{[%clk 0:02:09.2]} 17. Rac1 {[%clk 0:01:56.2]} 17... Nf4 {[%clk 0:02:00.6]} 18.
Bc4 {[%clk 0:01:47.5]} 18... Rac8 {[%clk 0:01:47.4]} 19. Bxe6 {[%clk 0:01:06.3]}
19... Ne2+ {[%clk 0:01:45.8]} 20. Kh1 {[%clk 0:01:06.5]} 20... Rxc1 {[%clk
0:01:45.6]} 21. Rxc1 {[%clk 0:01:06.3]} 21... Nxc1 {[%clk 0:01:46]} 22. Bd5
{[%clk 0:01:05.5]} 22... Nd3 {[%clk 0:01:37.1]} 23. Bxb7 {[%clk 0:00:58]} 23...
Nxe5 {[%clk 0:01:22.1]} 24. f4 {[%clk 0:00:46.8]} 24... Nc4 {[%clk 0:01:05.8]}
25. Bb4 {[%clk 0:00:45.3]} 25... e3 {[%clk 0:01:01.1]} 26. Kg1 {[%clk 0:00:42]}
26... e2 {[%clk 0:00:57.6]} 27. Be1 {[%clk 0:00:42.9]} 27... Nxb2 {[%clk
0:00:57]} 28. Bxa6 {[%clk 0:00:41.7]} 28... Re6 {[%clk 0:00:46.8]} 29. Bb5
{[%clk 0:00:38.9]} 29... Re3 {[%clk 0:00:34.6]} 30. a4 {[%clk 0:00:32.5]} 30...
Nd3 {[%clk 0:00:31.4]} 31. Bxd3 {[%clk 0:00:25.9]} 31... Rxd3 {[%clk 0:00:32.3]}
32. Kf2 {[%clk 0:00:26.5]} 32... Ra3 {[%clk 0:00:32.6]} 33. Kxe2 {[%clk
0:00:23.1]} 33... Rxa4 {[%clk 0:00:32.4]} 34. Kf3 {[%clk 0:00:20.5]} 34... f5
{[%clk 0:00:32.5]} 35. g4 {[%clk 0:00:17.7]} 35... Ra3+ {[%clk 0:00:32]} 36. Kg2
{[%clk 0:00:15.3]} 36... fxg4 {[%clk 0:00:32.4]} 37. Bg3 {[%clk 0:00:14.6]}
37... Kf7 {[%clk 0:00:31.8]} 38. Kf2 {[%clk 0:00:14.9]} 38... Rb3 {[%clk
0:00:31.8]} 39. Ke2 {[%clk 0:00:14.7]} 39... Ke6 {[%clk 0:00:32]} 40. Kf2 {[%clk
0:00:14.6]} 40... Kf5 {[%clk 0:00:32.1]} 41. Kg2 {[%clk 0:00:14.4]} 41... Rf3
{[%clk 0:00:31.7]} 42. Kg1 {[%clk 0:00:13.4]} 42... Rxf4 {[%clk 0:00:30]} 43.
Bxf4 {[%clk 0:00:13.6]} 43... Kxf4 {[%clk 0:00:30.5]} 44. Kg2 {[%clk 0:00:13.4]}
44... g5 {[%clk 0:00:30.6]} 45. Kf2 {[%clk 0:00:13.3]} 45... h5 {[%clk
0:00:30.1]} 46. Kg2 {[%clk 0:00:13.6]} 46... h4 {[%clk 0:00:28.5]} 47. Kf2
{[%clk 0:00:13.7]} 47... h3 {[%clk 0:00:28.7]} 48. Kg1 {[%clk 0:00:13.2]} 48...
g3 {[%clk 0:00:28.9]} 49. Kh1 {[%clk 0:00:08.9]} 49... gxh2 {[%clk 0:00:28.5]}
50. Kxh2 {[%clk 0:00:08.9]} 50... g4 {[%clk 0:00:28.6]} 51. Kh1 {[%clk
0:00:09.2]} 51... g3 {[%clk 0:00:28.3]} 0-1

[Event "*** SCC Grand Prix: Titled Tuesday Blitz"]
[Site "Chess.com"]
[Date "2020.07.21"]
[Round "3"]
[White "aliba25"]
[Black "Zmof"]
[Result "1-0"]
[WhiteElo "2636"]
[BlackElo "2173"]
[TimeControl "180+1"]
[EndTime "10:28:17 PDT"]
[Termination "aliba25 won on time"]

1. d4 {[%clk 0:03:00.9]} 1... Nf6 {[%clk 0:02:58.4]} 2. c4 {[%clk 0:03:01]} 2...
e6 {[%clk 0:02:58.8]} 3. Nf3 {[%clk 0:03:00.5]} 3... b6 {[%clk 0:02:58.4]} 4. g3
{[%clk 0:03:00]} 4... Ba6 {[%clk 0:02:52.7]} 5. b3 {[%clk 0:02:58.3]} 5... Bb4+
{[%clk 0:02:51]} 6. Bd2 {[%clk 0:02:56.9]} 6... Be7 {[%clk 0:02:50.4]} 7. Bg2
{[%clk 0:02:56.7]} 7... c6 {[%clk 0:02:42.8]} 8. O-O {[%clk 0:02:56.5]} 8... d5
{[%clk 0:02:42.7]} 9. Ne5 {[%clk 0:02:53.1]} 9... Nfd7 {[%clk 0:02:38.7]} 10.
Bf4 {[%clk 0:02:47.2]} 10... O-O {[%clk 0:02:32.4]} 11. cxd5 {[%clk 0:02:40.9]}
11... cxd5 {[%clk 0:02:30.3]} 12. Nxd7 {[%clk 0:02:38.1]} 12... Qxd7 {[%clk
0:02:22.7]} 13. Nc3 {[%clk 0:02:35.7]} 13... Nc6 {[%clk 0:02:21.9]} 14. Re1
{[%clk 0:02:33.1]} 14... Rac8 {[%clk 0:02:17.8]} 15. Rc1 {[%clk 0:02:13.5]}
15... Ba3 {[%clk 0:02:06.3]} 16. Rb1 {[%clk 0:02:12.8]} 16... Bb4 {[%clk
0:01:59.7]} 17. Rc1 {[%clk 0:02:11.8]} 17... Ba3 {[%clk 0:01:59.9]} 18. Rb1
{[%clk 0:02:10.3]} 18... Bb4 {[%clk 0:02:00]} 19. Bd2 {[%clk 0:01:52.7]} 19...
Nxd4 {[%clk 0:01:55.3]} 20. Nxd5 {[%clk 0:01:51.1]} 20... Bxd2 {[%clk 0:01:45]}
21. Qxd2 {[%clk 0:01:52]} 21... exd5 {[%clk 0:01:29.3]} 22. Qxd4 {[%clk
0:01:51.2]} 22... Rfd8 {[%clk 0:01:23.9]} 23. e3 {[%clk 0:01:49.2]} 23... Rc2
{[%clk 0:01:21.9]} 24. a4 {[%clk 0:01:47]} 24... Bb7 {[%clk 0:01:03.5]} 25. Rec1
{[%clk 0:01:43.3]} 25... Qc7 {[%clk 0:01:01.4]} 26. Rxc2 {[%clk 0:01:18.2]}
26... Qxc2 {[%clk 0:01:01.9]} 27. Qb2 {[%clk 0:01:19.1]} 27... Rc8 {[%clk
0:00:55.9]} 28. Qxc2 {[%clk 0:01:18.9]} 28... Rxc2 {[%clk 0:00:55.6]} 29. Rd1
{[%clk 0:01:19.8]} 29... Kf8 {[%clk 0:00:46.7]} 30. Bxd5 {[%clk 0:01:13.4]}
30... Bxd5 {[%clk 0:00:46.7]} 31. Rxd5 {[%clk 0:01:14.3]} 31... Rc3 {[%clk
0:00:47.4]} 32. Rd7 {[%clk 0:01:10.5]} 32... a5 {[%clk 0:00:45.4]} 33. Rb7
{[%clk 0:01:01.5]} 33... Rxb3 {[%clk 0:00:44.7]} 34. Kg2 {[%clk 0:01:00.7]}
34... Rb4 {[%clk 0:00:45]} 35. f4 {[%clk 0:01:00]} 35... Rxa4 {[%clk 0:00:43.9]}
36. Rxb6 {[%clk 0:01:00.2]} 36... Rb4 {[%clk 0:00:43.7]} 37. Ra6 {[%clk
0:00:59.9]} 37... a4 {[%clk 0:00:44.1]} 38. Kf3 {[%clk 0:00:59.9]} 38... f5
{[%clk 0:00:42.3]} 39. Ra7 {[%clk 0:00:58]} 39... h6 {[%clk 0:00:39.2]} 40. h3
{[%clk 0:00:57.4]} 40... Kg8 {[%clk 0:00:38.9]} 41. g4 {[%clk 0:00:56.9]} 41...
g6 {[%clk 0:00:33.7]} 42. gxf5 {[%clk 0:00:53]} 42... gxf5 {[%clk 0:00:33.1]}
43. Ra5 {[%clk 0:00:53.6]} 43... Kg7 {[%clk 0:00:23.6]} 44. Rxf5 {[%clk
0:00:53.1]} 44... a3 {[%clk 0:00:24.2]} 45. Ra5 {[%clk 0:00:52.5]} 45... Rb3
{[%clk 0:00:24.8]} 46. Ra6 {[%clk 0:00:51.3]} 46... Kh7 {[%clk 0:00:20.8]} 47.
h4 {[%clk 0:00:51]} 47... Kg7 {[%clk 0:00:19.8]} 48. f5 {[%clk 0:00:51.2]} 48...
Kh7 {[%clk 0:00:16.5]} 49. Kf4 {[%clk 0:00:51.2]} 49... Kg7 {[%clk 0:00:13.6]}
50. e4 {[%clk 0:00:51.1]} 50... h5 {[%clk 0:00:07.6]} 51. Ra7+ {[%clk
0:00:47.6]} 51... Kg8 {[%clk 0:00:06]} 52. e5 {[%clk 0:00:43.8]} 52... Rb4+
{[%clk 0:00:02.6]} 53. Kg5 {[%clk 0:00:43.8]} 1-0

[Event "*** SCC Grand Prix: Titled Tuesday Blitz"]
[Site "Chess.com"]
[Date "2020.07.21"]
[Round "3"]
[White "Grandelicious"]
[Black "FMJoseHerrera"]
[Result "1-0"]
[WhiteElo "2783"]
[BlackElo "2502"]
[TimeControl "180+1"]
[EndTime "10:28:18 PDT"]
[Termination "Grandelicious won by checkmate"]

1. Nf3 {[%clk 0:03:00.9]} 1... Nf6 {[%clk 0:02:57.6]} 2. g3 {[%clk 0:02:59.7]}
2... g6 {[%clk 0:02:57.6]} 3. b3 {[%clk 0:02:58.6]} 3... Bg7 {[%clk 0:02:58.5]}
4. Bb2 {[%clk 0:02:59.2]} 4... d6 {[%clk 0:02:58.6]} 5. d4 {[%clk 0:02:59.1]}
5... Nc6 {[%clk 0:02:58.6]} 6. d5 {[%clk 0:02:50.8]} 6... Nb8 {[%clk 0:02:57.6]}
7. Bg2 {[%clk 0:02:48.4]} 7... h5 {[%clk 0:02:57.2]} 8. c4 {[%clk 0:02:45.1]}
8... c6 {[%clk 0:02:43.4]} 9. dxc6 {[%clk 0:02:36.2]} 9... Nxc6 {[%clk
0:02:42.2]} 10. Nbd2 {[%clk 0:02:23.7]} 10... Bf5 {[%clk 0:02:31.2]} 11. Nf1
{[%clk 0:01:55]} 11... Qa5+ {[%clk 0:01:59.2]} 12. Qd2 {[%clk 0:01:51]} 12...
Nb4 {[%clk 0:01:58.7]} 13. Ne3 {[%clk 0:00:45.9]} 13... Ne4 {[%clk 0:01:58.2]}
14. Bxg7 {[%clk 0:00:46.8]} 14... Nxd2 {[%clk 0:01:55.8]} 15. Nxd2 {[%clk
0:00:47.7]} 15... Rg8 {[%clk 0:01:44.1]} 16. Bb2 {[%clk 0:00:46.5]} 16... Nc2+
{[%clk 0:01:25.1]} 17. Nxc2 {[%clk 0:00:42.3]} 17... Bxc2 {[%clk 0:01:26]} 18.
Bxb7 {[%clk 0:00:41.7]} 18... Rb8 {[%clk 0:01:25.3]} 19. Bc6+ {[%clk 0:00:35.1]}
19... Kf8 {[%clk 0:01:23.5]} 20. Rc1 {[%clk 0:00:27]} 20... Bf5 {[%clk
0:01:22.9]} 21. Bc3 {[%clk 0:00:24.2]} 21... Qb6 {[%clk 0:01:18]} 22. Bg2 {[%clk
0:00:20.7]} 22... h4 {[%clk 0:01:17.9]} 23. O-O {[%clk 0:00:19.3]} 23... hxg3
{[%clk 0:01:17]} 24. hxg3 {[%clk 0:00:20.2]} 24... f6 {[%clk 0:01:08.2]} 25. Nf3
{[%clk 0:00:20.5]} 25... Rh8 {[%clk 0:01:07.2]} 26. Bd4 {[%clk 0:00:20.7]} 26...
Qa6 {[%clk 0:01:05.9]} 27. Rfe1 {[%clk 0:00:15.3]} 27... Qc8 {[%clk 0:01:00.3]}
28. c5 {[%clk 0:00:15.2]} 28... d5 {[%clk 0:00:58.8]} 29. c6 {[%clk 0:00:15]}
29... Bh3 {[%clk 0:00:57.2]} 30. Bh1 {[%clk 0:00:14.9]} 30... e5 {[%clk
0:00:52.9]} 31. Bxa7 {[%clk 0:00:14.5]} 31... Ra8 {[%clk 0:00:53.4]} 32. Bc5+
{[%clk 0:00:13.3]} 32... Kf7 {[%clk 0:00:53.3]} 33. b4 {[%clk 0:00:12.7]} 33...
Rxa2 {[%clk 0:00:52.2]} 34. b5 {[%clk 0:00:12.5]} 34... Ra5 {[%clk 0:00:42.3]}
35. Ra1 {[%clk 0:00:11.4]} 35... Rxb5 {[%clk 0:00:28.4]} 36. Ra7+ {[%clk
0:00:11.3]} 36... Kg8 {[%clk 0:00:28.9]} 37. Be7 {[%clk 0:00:07.9]} 37... Qxc6
{[%clk 0:00:27.7]} 38. Rea1 {[%clk 0:00:06.3]} 38... Rb7 {[%clk 0:00:26.5]} 39.
Rxb7 {[%clk 0:00:04.7]} 39... Qxb7 {[%clk 0:00:27.4]} 40. Bxf6 {[%clk
0:00:05.3]} 40... Rh5 {[%clk 0:00:18.9]} 41. Bxe5 {[%clk 0:00:05.3]} 41... Rxe5
{[%clk 0:00:18.4]} 42. Nxe5 {[%clk 0:00:06.2]} 42... Qb2 {[%clk 0:00:18.9]} 43.
Bxd5+ {[%clk 0:00:04.1]} 43... Kg7 {[%clk 0:00:17.5]} 44. Ra7+ {[%clk
0:00:03.6]} 44... Kf6 {[%clk 0:00:17.9]} 45. Nf3 {[%clk 0:00:02.9]} 45... Bf5
{[%clk 0:00:15.3]} 46. Rf7# {[%clk 0:00:02]} 1-0

[Event "*** SCC Grand Prix: Titled Tuesday Blitz"]
[Site "Chess.com"]
[Date "2020.07.21"]
[Round "3"]
[White "vladislavkovalev"]
[Black "olksuna"]
[Result "1-0"]
[WhiteElo "2894"]
[BlackElo "2625"]
[TimeControl "180+1"]
[EndTime "10:28:21 PDT"]
[Termination "vladislavkovalev won on time"]

1. e4 {[%clk 0:03:00.9]} 1... d6 {[%clk 0:02:59.8]} 2. d4 {[%clk 0:03:00.8]}
2... Nf6 {[%clk 0:03:00.4]} 3. Nc3 {[%clk 0:03:01.4]} 3... c6 {[%clk 0:03:00.9]}
4. Be3 {[%clk 0:02:55.6]} 4... Nbd7 {[%clk 0:02:58.7]} 5. f3 {[%clk 0:02:55.1]}
5... e5 {[%clk 0:02:58.6]} 6. Qd2 {[%clk 0:02:55.7]} 6... Be7 {[%clk 0:02:58.7]}
7. O-O-O {[%clk 0:02:56.1]} 7... O-O {[%clk 0:02:58]} 8. g4 {[%clk 0:02:56.7]}
8... b5 {[%clk 0:02:58]} 9. h4 {[%clk 0:02:52.8]} 9... b4 {[%clk 0:02:53.3]} 10.
Nce2 {[%clk 0:02:52.7]} 10... d5 {[%clk 0:02:50.7]} 11. g5 {[%clk 0:02:49.6]}
11... Nh5 {[%clk 0:02:42.4]} 12. exd5 {[%clk 0:02:42.8]} 12... cxd5 {[%clk
0:02:39.5]} 13. dxe5 {[%clk 0:02:41]} 13... Nxe5 {[%clk 0:02:25.8]} 14. Qxd5
{[%clk 0:02:41.4]} 14... Qc7 {[%clk 0:02:13.2]} 15. Nd4 {[%clk 0:02:26.7]} 15...
Bb7 {[%clk 0:01:37.5]} 16. Nb5 {[%clk 0:02:23.6]} 16... Qb8 {[%clk 0:01:31.8]}
17. Qb3 {[%clk 0:02:19.9]} 17... Nxf3 {[%clk 0:01:24.7]} 18. Be2 {[%clk
0:02:00.4]} 18... Ng3 {[%clk 0:01:15.3]} 19. Bxf3 {[%clk 0:01:43.3]} 19... Nxh1
{[%clk 0:01:12.5]} 20. Nd4 {[%clk 0:01:38.8]} 20... Ng3 {[%clk 0:01:08.4]} 21.
Nc6 {[%clk 0:01:06.6]} 21... Qc7 {[%clk 0:00:55.5]} 22. Nxe7+ {[%clk 0:01:06.8]}
22... Qxe7 {[%clk 0:00:55.6]} 23. g6 {[%clk 0:01:02.7]} 23... Bxf3 {[%clk
0:00:48.9]} 24. gxh7+ {[%clk 0:00:54.2]} 24... Kh8 {[%clk 0:00:42.1]} 25. Nxf3
{[%clk 0:00:55.1]} 25... Rad8 {[%clk 0:00:39.7]} 26. Re1 {[%clk 0:00:50.4]}
26... Qd6 {[%clk 0:00:33.9]} 27. Kb1 {[%clk 0:00:41.7]} 27... Qd1+ {[%clk
0:00:27.1]} 28. Bc1 {[%clk 0:00:35.3]} 28... Ne2 {[%clk 0:00:25.2]} 29. Qe3
{[%clk 0:00:33.8]} 29... Nxc1 {[%clk 0:00:23.1]} 30. Rxd1 {[%clk 0:00:24.4]}
30... Rxd1 {[%clk 0:00:24]} 31. c3 {[%clk 0:00:25.1]} 31... bxc3 {[%clk
0:00:16.4]} 32. bxc3 {[%clk 0:00:25.1]} 32... Rh1 {[%clk 0:00:11.2]} 33. Kc2
{[%clk 0:00:20.7]} 33... f6 {[%clk 0:00:09.2]} 34. Qxa7 {[%clk 0:00:17.3]} 34...
Ne2 {[%clk 0:00:06.3]} 35. a4 {[%clk 0:00:12.2]} 35... Rc8 {[%clk 0:00:05.6]}
36. Qb7 {[%clk 0:00:08.9]} 36... Re8 {[%clk 0:00:03.5]} 37. Ng5 {[%clk
0:00:03.3]} 37... Ra1 {[%clk 0:00:03.2]} 38. Qf7 {[%clk 0:00:01.9]} 38... Rc8
{[%clk 0:00:02.8]} 39. Kd2 {[%clk 0:00:02]} 39... Nf4 {[%clk 0:00:01.4]} 40. Qd7
{[%clk 0:00:02.1]} 1-0

[Event "*** SCC Grand Prix: Titled Tuesday Blitz"]
[Site "Chess.com"]
[Date "2020.07.21"]
[Round "3"]
[White "Crazy_girl99"]
[Black "VovenRogel"]
[Result "0-1"]
[WhiteElo "2483"]
[BlackElo "2741"]
[TimeControl "180+1"]
[EndTime "10:28:23 PDT"]
[Termination "VovenRogel won on time"]

1. e4 {[%clk 0:03:00.9]} 1... e5 {[%clk 0:02:58.2]} 2. Nf3 {[%clk 0:03:00.4]}
2... Nc6 {[%clk 0:02:58.5]} 3. Bb5 {[%clk 0:03:00.2]} 3... Nf6 {[%clk
0:02:58.5]} 4. d3 {[%clk 0:02:59.8]} 4... Bc5 {[%clk 0:02:58.1]} 5. O-O {[%clk
0:03:00.3]} 5... d6 {[%clk 0:02:56.3]} 6. c3 {[%clk 0:03:00.4]} 6... O-O {[%clk
0:02:55.8]} 7. h3 {[%clk 0:03:00.5]} 7... h6 {[%clk 0:02:54.4]} 8. Nbd2 {[%clk
0:03:00.8]} 8... a6 {[%clk 0:02:53.5]} 9. Ba4 {[%clk 0:03:00.5]} 9... Ba7 {[%clk
0:02:50.7]} 10. Re1 {[%clk 0:03:00]} 10... Ne7 {[%clk 0:02:50.6]} 11. Nf1 {[%clk
0:03:00]} 11... Ng6 {[%clk 0:02:50.5]} 12. Ng3 {[%clk 0:02:58.2]} 12... c6
{[%clk 0:02:45.4]} 13. d4 {[%clk 0:02:57.9]} 13... Re8 {[%clk 0:02:42.2]} 14.
Bc2 {[%clk 0:02:55.4]} 14... Be6 {[%clk 0:02:39.7]} 15. Be3 {[%clk 0:02:55.5]}
15... Qd7 {[%clk 0:02:32.5]} 16. Kh2 {[%clk 0:02:54.2]} 16... Qc7 {[%clk
0:02:13.2]} 17. Qd2 {[%clk 0:02:52.8]} 17... Rad8 {[%clk 0:02:02.4]} 18. Rad1
{[%clk 0:02:38.1]} 18... d5 {[%clk 0:01:53.5]} 19. Nxe5 {[%clk 0:01:27.5]} 19...
Nxe5 {[%clk 0:01:48.2]} 20. dxe5 {[%clk 0:01:28.4]} 20... Nxe4 {[%clk
0:01:47.4]} 21. Qe2 {[%clk 0:00:53.9]} 21... Bxe3 {[%clk 0:01:40.2]} 22. Qxe3
{[%clk 0:00:54.8]} 22... Qxe5 {[%clk 0:01:38.3]} 23. f4 {[%clk 0:00:49.8]} 23...
Qf6 {[%clk 0:01:31.9]} 24. Bxe4 {[%clk 0:00:31]} 24... dxe4 {[%clk 0:01:31.4]}
25. Nxe4 {[%clk 0:00:31]} 25... Qg6 {[%clk 0:01:27.8]} 26. Rxd8 {[%clk
0:00:24.4]} 26... Rxd8 {[%clk 0:01:27.5]} 27. Nc5 {[%clk 0:00:24.9]} 27... Bd5
{[%clk 0:01:23.7]} 28. Qg3 {[%clk 0:00:18.2]} 28... Qxg3+ {[%clk 0:01:09.6]} 29.
Kxg3 {[%clk 0:00:19.1]} 29... Bxa2 {[%clk 0:01:07.6]} 30. Nxb7 {[%clk
0:00:18.2]} 30... Rd2 {[%clk 0:01:07.3]} 31. Nc5 {[%clk 0:00:10]} 31... Bd5
{[%clk 0:01:06.6]} 32. Ne4 {[%clk 0:00:09.3]} 32... Rxb2 {[%clk 0:01:05.4]} 33.
f5 {[%clk 0:00:08.5]} 33... Rc2 {[%clk 0:01:01.4]} 34. Kf3 {[%clk 0:00:07.5]}
34... Rxc3+ {[%clk 0:01:00.9]} 35. Kf2 {[%clk 0:00:05.5]} 35... Rc2+ {[%clk
0:01:00.9]} 36. Kg1 {[%clk 0:00:04]} 36... a5 {[%clk 0:01:00.1]} 37. f6 {[%clk
0:00:02.6]} 37... Bxe4 {[%clk 0:00:57.9]} 38. Rxe4 {[%clk 0:00:03.5]} 38... gxf6
{[%clk 0:00:58.1]} 39. Ra4 {[%clk 0:00:03.5]} 39... Rc5 {[%clk 0:00:57]} 40. Kf2
{[%clk 0:00:03.3]} 40... Kf8 {[%clk 0:00:55.8]} 41. Ke3 {[%clk 0:00:03.5]} 41...
Ke7 {[%clk 0:00:55.8]} 42. g4 {[%clk 0:00:03.8]} 42... Re5+ {[%clk 0:00:54.3]}
43. Kf4 {[%clk 0:00:04.1]} 43... h5 {[%clk 0:00:55.2]} 44. Kg3 {[%clk
0:00:02.3]} 44... Kf8 {[%clk 0:00:51.6]} 45. Rc4 {[%clk 0:00:02.7]} 45... hxg4
{[%clk 0:00:51.2]} 46. hxg4 {[%clk 0:00:02.6]} 46... Kg7 {[%clk 0:00:40.5]} 47.
Rxc6 {[%clk 0:00:02.6]} 47... Re3+ {[%clk 0:00:39.9]} 48. Kf4 {[%clk 0:00:02.6]}
48... Ra3 {[%clk 0:00:40.8]} 49. Ra6 {[%clk 0:00:02.6]} 49... Kg6 {[%clk
0:00:39.4]} 50. Ke4 {[%clk 0:00:01.5]} 50... Ra4+ {[%clk 0:00:39.2]} 51. Kf3
{[%clk 0:00:01.6]} 51... Kg5 {[%clk 0:00:39.4]} 52. Ra7 {[%clk 0:00:01.8]} 52...
Ra3+ {[%clk 0:00:39.3]} 53. Kf2 {[%clk 0:00:01.6]} 53... Kxg4 {[%clk 0:00:39.4]}
54. Rxf7 {[%clk 0:00:02.2]} 54... f5 {[%clk 0:00:39.5]} 55. Rg7+ {[%clk
0:00:01.6]} 55... Kf4 {[%clk 0:00:39.4]} 56. Rh7 {[%clk 0:00:02.2]} 56... Ra2+
{[%clk 0:00:39.6]} 57. Ke1 {[%clk 0:00:02.9]} 57... a4 {[%clk 0:00:39.6]} 58.
Rh4+ {[%clk 0:00:02.9]} 58... Kg3 {[%clk 0:00:39.6]} 59. Rb4 {[%clk 0:00:02.7]}
59... f4 {[%clk 0:00:39.1]} 0-1